Cogmind - Beta 16 @@@ ROGUE MODE // 2025.10.25 @ 15:13:32 Player: pannocatto Result: Destroyed by G-50 Soldier with Heavy Laser Performance ------------- Evolutions (2) 1000 Regions Visited (3) 600 Robots Destroyed (18) 90 Value Destroyed (366) 366 Prototype IDs (1) 20 Alien Tech Used (0) 0 Bonus (-11) -11 TOTAL SCORE: 2065 Bonus ------- Friendly Fire -11 Cogmind --------- Core Integrity 0/550 Matter 260/300 Energy 100/100 System Corruption 0% Temperature Warm (115) Movement Core (150) Ox2 Location -8/Materials Parts ------- > --- POWER (1) -------- (None) > --- PROPULSION (3) --- (None) > --- UTILITY (5) ------ Subdweller Optics Advanced Terrain Scan Processor > --- WEAPON (2) ------- Ion Cannon > --- INVENTORY (5) ---- High-capacity Matter Pod (200) Ion Cannon Peak State ------------ > --- POWER ------------ Light Angular Momentum Engine > --- PROPULSION ------- Subdweller Monowheel > --- UTILITY ---------- Subdweller Optics Improved Terrain Scanner Advanced Terrain Scan Processor Scrap Shield > --- WEAPON ----------- Cooled Particle Cannon Cooled Particle Cannon > --- INVENTORY -------- Light Ion Engine High-capacity Matter Pod Subdweller Laser Subdweller Beam Cannon Cooled Particle Cannon [Rating: 31] Favorites ----------- Power Subdweller Power Source Engine Subdweller Power Source Power Core Nuclear Core Propulsion Subdweller Monowheel Treads Light Treads Leg Aluminum Leg Wheel Subdweller Monowheel Hover Unit Hover Unit Utility Scrap Shield Device Improved Terrain Scanner Storage Small Storage Unit Processor Advanced Terrain Scan Processor Protection Scrap Shield Weapon Subdweller Laser Energy Gun Subdweller Laser Energy Cannon Subdweller Beam Cannon Ballistic Gun Assault Rifle Build | -11 -10 -10 -8 ------- Run | Yrd Mat Sub Mat Slots Evolved 4 | . . . 4 Power . | . . . . Propulsion 1 | . . . 1 Utility 3 | . . . 3 Weapon . | . . . . Parts Attached 36 | 10 7 8 11 Power 6 | 1 2 2 1 Engine 5 | 1 2 2 . Core 1 | . . . 1 Reactor . | . . . . Propulsion 11 | 4 2 3 2 Treads 2 | 1 . . 1 Leg 2 | 1 . . 1 Wheel 5 | 2 . 3 . Hover 2 | . 2 . . Flight . | . . . . Utility 8 | 2 1 1 4 Device 2 | 1 . . 1 Storage 3 | 1 1 . 1 Processor 1 | . . . 1 Hackware . | . . . . Protection 2 | . . 1 1 Artifact . | . . . . Weapon 11 | 3 2 2 4 Energy Gun 3 | 2 . 1 . Energy Cannon 5 | . . 1 4 Ballistic Gun 3 | 1 2 . . Ballistic Cannon . | . . . . Launcher . | . . . . Special Weapon . | . . . . Impact Weapon . | . . . . Slashing Weapon . | . . . . Piercing Weapon . | . . . . Special Melee Weapon . | . . . . Unidentified Prototypes 1 | . . . 1 Parts Lost 7 | . . . 7 Power 2 | . . . 2 Propulsion 1 | . . . 1 Utility 3 | . . . 3 Weapon 1 | . . . 1 Highest Loss Streak 5 | . . . 5 To Critical Strikes . | . . . . Average Backups 3 | 3 4 4 3 Power . | . 1 . . Propulsion . | 1 1 . . Utility 2 | . . 3 1 Weapon . | . 1 . . Tool/Special . | . . . . Unused Backups 10 | 2 2 1 5 Power . | . . . . Propulsion 7 | 2 2 1 2 Utility . | . . . . Weapon 3 | . . . 3 Tool/Special . | . . . . Average Slot Usage (%) 79 | . 100 79 67 Engine 12 | . 14 14 4 Wheel 11 | . 2 13 8 Hover 9 | . 25 8 . Device 5 | . 14 . 17 Storage 1 | . 14 . . Processor 1 | . . . 8 Protection 10 | . . 13 5 Energy Gun 9 | . 1 12 . Energy Cannon 9 | . . 9 16 Ballistic Gun 7 | . 26 5 . Peak Build Rating 31 | 9 9 15 31 Average Rating 13 | 7 9 12 26 On Entrance 8 | . 9 9 15 Avg Prop Armor Cover (%) 3 | 5 . 1 10 Naked Turns . | . . . . Heaviest Build 46 | 12 13 39 46 Greatest Support 40 | 20 20 40 20 Greatest Overweight (x) 4 | . 1 2 4 Average Overweight (x) 1 | . . 1 1 Largest Inventory Capacity 20 | 8 20 8 5 Average Capacity 5 | 7 8 5 5 Most Carried 8 | 7 8 7 5 Average Carried 4 | 3 4 4 3 Final Capacity 8 | 8 8 5 5 Final Carried 5 | 4 5 4 2 Class Distribution -------------------- 58% | Subdweller-Mutant 25% | Mutant 8% | Subdweller-Skirmisher 4% | Scavenger-Skirmisher 3% | Skirmisher Dominant Class ---------------- Mutant | -10/Materials Subdweller-Mutant | -10/Subcaves Subdweller-Skirmisher | -8/Materials Resources | -11 -10 -10 -8 ----------- Run | Yrd Mat Sub Mat Matter Collected 921 | 337 188 248 148 Remotely . | . . . . Salvage Created 583 | 230 96 . 257 Parts 43 | 24 7 . 12 Haulers Intercepted . | . . . . Recyclers Shooed 2 | 1 1 . . Parts Field Recycled . | . . . . Retrieved Matter . | . . . . Parts Self-Destructed 8 | . . 8 . Prevented . | . . . . Parts Restored . | . . . . Kills | -11 -10 -10 -8 ------- Run | Yrd Mat Sub Mat Combat Hostiles Destroyed 9 | . 4 . 5 Guns 4 | . 4 . . Cannons 5 | . . . 5 Classes Destroyed 7 | 3 2 . 2 Worker 2 | 2 . . . Tunneler 5 | 5 . . . Recycler 1 | 1 . . . Operator 1 | . . . 1 Swarmer 3 | . 3 . . Grunt 5 | . 1 . 4 Sentry 1 | . . . 1 Best Kill Streak 4 | 4 3 . 4 Combat Bots Only 4 | . 3 . 4 Max Kills in Single Turn 1 | 1 1 . 1 Gunslinging . | . . . . Exploded . | . . . . Melee . | . . . . Uniques/NPCs Destroyed . | . . . . Combat | -11 -10 -10 -8 -------- Run | Yrd Mat Sub Mat Hostile Shots Fired 92 | . 16 2 74 Missed 11 | . 4 . 7 Hits 81 | . 12 2 67 Projectile 81 | . 12 2 67 Critical Strikes 5 | . 1 . 4 Damage Taken 1527 | . 110 84 1333 Core 601 | . 36 14 551 Absorbed by Shields . | . . . . Core Remaining (%) 90 | 100 . 80 . Volleys Fired 56 | 17 9 5 25 Largest 2 | 2 2 2 2 Hottest 140 | 60 40 140 120 Shots Fired 111 | 34 18 10 49 Gun 58 | 34 18 6 . Cannon 53 | . . 4 49 Launcher . | . . . . Special . | . . . . Kinetic 37 | 17 18 2 . Thermal 57 | . . 8 49 Explosive . | . . . . Electromagnetic 17 | 17 . . . Robot Hit Streak 7 | 4 4 . 7 Robot Miss Streak 5 | 2 2 2 5 Penetration Max . | . . . . Secondary Targets . | . . . . Shots Hit Robots 59 | 17 11 . 31 Core Hits 28 | 13 5 . 10 Critical Kills . | . . . . Critical Parts Destroyed . | . . . . Critical Strikes . | . . . . Melee Attacks . | . . . . Impact . | . . . . Slashing . | . . . . Piercing . | . . . . Sneak Attacks . | . . . . Combat Hostiles . | . . . . Follow-up Attacks . | . . . . Damage Inflicted 1198 | 238 143 11 806 Guns 354 | 200 143 11 . Cannons 806 | . . . 806 Explosions 38 | 38 . . . Melee . | . . . . Ramming . | . . . . Kinetic 220 | 66 143 11 . Thermal 844 | 38 . . 806 Explosive . | . . . . Electromagnetic 134 | 134 . . . Impact . | . . . . Slashing . | . . . . Piercing . | . . . . Highest Corruption . | . . . . Average Corruption . | . . . . Corruption Purged . | . . . . Corruption Blocked . | . . . . Overload Shots . | . . . . Overflow Damage 51 | . . . 51 Projectiles 51 | . . . 51 Explosions . | . . . . Melee . | . . . . Knockbacks . | . . . . Impact . | . . . . Kinetic . | . . . . Secondary . | . . . . Self-Inflicted Damage . | . . . . Shots . | . . . . Rammed . | . . . . Targets Rammed . | . . . . Kicked . | . . . . Crushed . | . . . . Highest Temperature 874 | 40 1 36 874 Average Temperature 199 | 19 1 16 298 Received Heat Transfer 702 | . 36 . 666 Effects 20 | . . . 20 Shutdowns 3 | . . . 3 Energy Bleed 1 | . . . 1 Interference 3 | . . . 3 Matter Decay 2 | . . . 2 Short Circuit 1 | . . . 1 Damage (minor) 2 | . . . 2 Damage (major) 5 | . . . 5 Damage (core) 3 | . . . 3 Siege Activations . | . . . . Martial Activations . | . . . . Shielding Activations . | . . . . Robots Disrupted . | . . . . Combat Hostiles . | . . . . Robots Corrupted . | . . . . Combat Hostiles . | . . . . Parts Fried . | . . . . Impact Corruptions . | . . . . Robots Melted . | . . . . Combat Hostiles . | . . . . Parts Melted 1 | . . . 1 Heat Transferred 1197 | 50 . . 1147 Parts Sabotaged . | . . . . Parts Stolen . | . . . . Parts Stripped . | . . . . Power Chain Reactions 1 | 1 . . . Alert | -11 -10 -10 -8 ------- Run | Yrd Mat Sub Mat Maximum Alert Level . | . . . . Low Security (%) 100 | 100 100 . 100 Level 1 . | . . . . Level 2 . | . . . . Level 3 . | . . . . Level 4 . | . . . . Level 5 . | . . . . High Security . | . . . . Max Security . | . . . . Peak Influence 126 | 10 75 . 126 Initial . | . . . . Average 32 | 2 25 . 51 Influence Increases 370 | 40 105 . 225 Destroy 0b10 Robot/C 180 | . 80 . 100 Destroy 0b10 Robot/NC 45 | 40 . . 5 Destroy Leader 30 | . 10 . 20 Successful Hack 3 | . . . 3 Disable Machine 15 | . . . 15 Destroy Structure 7 | . . . 7 Lose Combat Pursuer 90 | . 15 . 75 Influence Decreases 328 | 40 105 . 183 Time Decay 258 | 40 105 . 113 Lost Part 70 | . . . 70 Squads Dispatched 3 | . 2 . 1 Investigation 1 | . 1 . . Extermination . | . . . . Reinforcement 2 | . 1 . 1 Assault . | . . . . Garrison . | . . . . Intercept . | . . . . Searches Triggered . | . . . . Construction Impeded . | . . . . Haulers Reinforced . | . . . . Active Scanning Responses . | . . . . Cargo Convoy Interrupts . | . . . . Stealth | -11 -10 -10 -8 --------- Run | Yrd Mat Sub Mat Distress Signals 1 | . 1 . . Communications Jammed . | . . . . Distress Signals . | . . . . Times Spotted 26 | . 8 8 10 Peak Tracking Total 6 | . 4 2 6 Tactical Retreats 3 | . 1 . 2 Traps | -11 -10 -10 -8 ------- Run | Yrd Mat Sub Mat Traps Triggered 1 | . 1 . . Indirectly . | . . . . Trap Hack Attempts . | . . . . Triggered . | . . . . Disarmed . | . . . . Reprogrammed . | . . . . Reused . | . . . . Traps Extracted . | . . . . Installed . | . . . . Triggered . | . . . . Machines | -11 -10 -10 -8 ---------- Run | Yrd Mat Sub Mat Machines Disabled 1 | . . . 1 Max in Single Turn 1 | . . . 1 Machines Repaired . | . . . . Machines Dismantled . | . . . . Machines Sabotaged . | . . . . Overloaded Fab Kills . | . . . . Hacking | -11 -10 -10 -8 --------- Run | Yrd Mat Sub Mat Machines Accessed 2 | . 1 . 1 Terminals 1 | . . . 1 Fabricators . | . . . . Repair Stations . | . . . . Recycling Units 1 | . 1 . . Scanalyzers . | . . . . Garrison Access . | . . . . Total Hacks 4 | . 2 . 2 Successful 3 | . 1 . 2 Failed 1 | . 1 . . Catastrophic . | . . . . Database Lockouts . | . . . . Manual . | . . . . Terminals 2 | . . . 2 Fabricators . | . . . . Repair Stations . | . . . . Recycling Units 2 | . 2 . . Scanalyzers . | . . . . Garrison Access . | . . . . Terminal Hacks 2 | . . . 2 Emergency Access Points 1 | . . . 1 Maintenance Status 1 | . . . 1 Fabricator Hacks . | . . . . Repair Station Hacks . | . . . . Recycling Unit Hacks 1 | . 1 . . Retrieve Matter 1 | . 1 . . Scanalyzer . | . . . . Garrison Access Hacks . | . . . . Unauthorized Hacks . | . . . . Terminals . | . . . . Fabricators . | . . . . Repair Stations . | . . . . Recycling Units . | . . . . Scanalyzers . | . . . . Garrison Access . | . . . . Data Cores Recovered . | . . . . Used . | . . . . Hacking Detections 1 | . . . 1 Full Trace Events . | . . . . Feedback Events . | . . . . Feedback Blocked . | . . . . Robot Schematics Acquired . | . . . . Robots Built . | . . . . Authchips . | . . . . Time . | . . . . Total Robot Build Rating . | . . . . Part Schematics Acquired . | . . . . Parts Built . | . . . . Authchips . | . . . . Time . | . . . . Total Part Build Rating . | . . . . Part Studies Acquired . | . . . . Parts Repaired . | . . . . Time . | . . . . Parts Recycled . | . . . . Recycled Matter . | . . . . Retrieved Matter 4 | . 4 . . Retrieved Components . | . . . . Parts Scanalyzed . | . . . . Part Schematics Acquired . | . . . . Parts Damaged . | . . . . Bothacking | -11 -10 -10 -8 ------------ Run | Yrd Mat Sub Mat Used RIF Installer . | . . . . Robots Hacked . | . . . . Non-combat . | . . . . Combat . | . . . . Robot Hacks Applied . | . . . . Relay Couplers Released . | . . . . Fabnet Peak Effective % . | . . . . Robots Rewired . | . . . . Allies Hacked . | . . . . Hacks Repelled . | . . . . Allies | -11 -10 -10 -8 -------- Run | Yrd Mat Sub Mat Total Allies . | . . . . Largest Group . | . . . . Highest-Rated Group . | . . . . Highest-Rated Ally . | . . . . Total Orders . | . . . . Ally Attacks . | . . . . Total Damage . | . . . . Kills . | . . . . Allies Corrupted . | . . . . Allies Melted . | . . . . Intel | -11 -10 -10 -8 ------- Run | Yrd Mat Sub Mat Active Infowar (turns) 778 | 128 273 3 374 Optics 373 | . . . 373 Terrain 771 | 128 273 3 367 Robot Analysis Total . | . . . . Derelict Logs Recovered 1 | . . 1 . Drone Launches . | . . . . Drone Recoveries . | . . . . Exploration | -11 -10 -10 -8 ------------- Run | Yrd Mat Sub Mat Turns Passed 2347 | 204 273 1455 415 Spaces Moved 1526 | 150 186 1004 186 Core 33 | 18 . . 15 Treads 24 | 14 . . 10 Legs 3 | . . . 3 Wheels 1103 | 118 12 815 158 Hover 363 | . 174 189 . Flight . | . . . . Fastest Speed 50 | 50 56 110 110 Average Speed 123 | 83 112 129 133 Slowest Speed 260 | 160 125 176 260 Overloaded Moves . | . . . . Propulsion Burnouts . | . . . . Robots Hopped . | . . . . Potential Cave-ins . | . . . . Cave-ins Triggered . | . . . . Exploration Rate (%) 23 | 5 40 38 9 Regions Visited 3 Branch Regions 1 Pre-discovered Areas . | . . . . Known Exits Taken . | . . . . Unknown Exits Taken 3 | 1 1 1 . Scrap Searched . | . . . . Spaces Dug 2 | . . 2 . Terrain Destroyed 13 | 5 . 2 6 Melee . | . . . . Projectile 8 | . . 2 6 AOE 5 | 5 . . . Terrain Rammed . | . . . . Walls Destroyed . | . . . . Machines Disabled . | . . . . Actions | -11 -10 -10 -8 --------- Run | Yrd Mat Sub Mat Total 1893 | 197 230 1157 309 Wait 183 | . 13 112 58 Move 1523 | 149 185 1003 186 Hop . | . . . . Pick Up 50 | 14 8 13 15 Fast Attach 1 | 1 . . . Attach 20 | 7 . 6 7 Detach 2 | 1 . 1 . Swap 22 | 4 8 4 6 Drop 36 | 4 7 13 12 Fire 56 | 17 9 5 25 Melee . | . . . . Ram . | . . . . Kick . | . . . . Crush . | . . . . Escape Stasis . | . . . . Rewire . | . . . . Trap . | . . . . Miscellaneous . | . . . . Route ------- -11/Scrapyard -10/Materials (discovered 2 exits: [*Mat] / [*Sub]) -10/Subcaves -8/Materials History --------- Turn | Location | Event 7 | -11/Scrapyard | Discovered new exit (range 15) 205 | -11/Scrapyard | Entered Materials 308 | -10/Materials | Discovered new exit (range 4) 309 | -10/Materials | Build established: Mutant 461 | -10/Materials | Discovered new exit (range 4) 478 | -10/Materials | Entered Subcaves 844 | -10/Subcaves | Ambushed by swarm of Subdwellers 871 | -10/Subcaves | Build established: Subdweller-Mutant 900 | -10/Subcaves | A swath of the cavern ceiling suddenly collapsed 951 | -10/Subcaves | A swath of the cavern ceiling suddenly collapsed 1044 | -10/Subcaves | Discovered new exit (range 8) 1189 | -10/Subcaves | Learned Materials stockpile data 1933 | -10/Subcaves | Entered Materials 1933 | -8/Materials | Evolved 4 slots: Propulsion x1, Utility x3 2311 | -8/Materials | Core integrity fell below 50% 2335 | -8/Materials | Core integrity fell below 20% 2348 | -8/Materials | Destroyed by G-50 Soldier with Heavy Laser Last Messages --------------- Overheating: Short circuit. Power failure, Nuclear Core shutdown. Overheating: Sub. Monowheel damaged (-22). Overheating: Ion Cannon damaged (-24). Overheating: Nuclear Core damaged (-22). Overheating: Adv. Terrain Scan Processor damaged (-8). Overheating: Energy bleed (-23). Overheating: System interference. Ion Cannon temporarily disabled. Sub. Optics temporarily disabled. Acquired 42 matter. Hrd. Heavy Armor Plating destroyed. Overheating: Core damaged (-66). Ion Cannon destroyed. Power failure, Nuclear Core shutdown. Sub. Monowheel destroyed. Overheating: Adv. Terrain Scan Processor damaged (-5). Nuclear Core destroyed. K-01 Serf cleans the Fusion Modulator. K-01 Serf collects debris. Map ----- +----------------------------------------------------+ | ????????????????????????????????????? | | ??????????????#?????????????????????? | | ????????????????? ???????? ?????????? | | ????????????????? ??#???! ??????????? | | ????????????#????????? ?? ??????????? | | ????????#????#??##?#?? ?? ?????????? | | ???????????????###?####?###?#???????? | | ????????#?###?################?#????? | | ?????????????## ###?##?#????? | | ????????##???## #########???? | | ???????###?#### ####?##?????? | | ????#????#?#### #?##?####?#?? | | ????#???####### #?#?####### ? | | ?????#?######## #######?#?#?? | | ???###?######## ############? | | ???#####?###### ###########?# | | ??##?##############+#########? ?? | | ###??##? ##### ######## ? ?? | | ???#### ##### # # """? | | ##??##? """##### # """ # """ | | #??#### """##### += "T" # """ | | ####### """##### [ = # | | ?????##? ##### ######## | | ??#?######+#######g """ | | ?###### g """ | | ???#?## @ """ | | ?#?#### % / | | #?##### ######+######## | | ####### ### #####+#### | | ?#?#### ! !### % # # | | #?#?###!! !!### """ ] #"" # | | ?############### """" =#"T ### | | #?############## """" %=#"" ### | | ???#?########### !+ ]] ### | | ?##?############ ] = # ] ### | | #?####?######### ] = # ] ##? | | ?######################### ### | | #?##?##################### ## | | #####?############################### | | ??##?##?############### ? ### | | ????###?############### """ ### | | ????#?#?#?############# """"" ### | | #?#?#??####?########### """"" ### | | ???#####?###?########## """"" ### | | ???#?#?##??############ """ ### | | ?????????#?###?######## ### | | ??????#????#??############+#+#####?#? | | ??????????????? ##### ?? ?? | | ????????????#?? ##### ? ???? | | ??????????#?????? + ? ????? | +----------------------------------------------------+ Best States ------------- Heat Dissipation 31 Energy Generation 18 Energy Capacity 240 Matter Stores 470 Matter Capacity 500 Sight Range 21 Terrain Scan Range 16 Terrain Scan Density 210 Armor Coverage 800 Evasion (%) 50 Recoil Reduction 1 Item Schematics ----------------- None Robot Schematics ------------------ None Fabricated ------------ Nothing Repaired ---------- Nothing Studied --------- None Alien Tech Used ----------------- None Achievements -------------- I Have A Map? Omniscient Cartographer Organ Harvest Spot Them First Well Done Challenges ------------ None Game ------ Seed GravmagIonAnalyzer Manual? 0 Play Time 00:48:42 Cumulative 1.3 hours Start 2025.10.25 @ 14:22:09 End 2025.10.25 @ 15:13:32 Sessions 1 Manual Loads 0 Difficulty Rogue Special Mode None Game No. 4 Rogue 4 Adventurer 0 Explorer 0 Win Type - Total 0 Types 0/0/0/0/0/0/0/0/0/0 Lore% 0 Gallery% 3 Achievement% 3 Wizard Run 0 Options --------- Layout 0 ASCII 1 Keyboard 0 Movement Mouse Keybinds 0 Fullscreen 2 Font 36/VGA_Max Map View 76x50 Zoom Use 0% Tactical HUD 0 Map Filters NONE Filters NONE Steam 1 RUN: ab97d61c-0fce-459c-a277-09e24e91f29b